bitfinex-derivatives/quotes_ETHF0:USTF0_20210402
["timestamp","ask_amount","ask_price","bid_price","bid_amount"]
[1617385341219,2.90695,2051.1,2051.0,103.49485]
[1617385341821,0.9775,2051.2,2051.0,103.49485]
[1617385342020,14.2589,2051.9,2051.0,102.52905]
[1617385342420,14.2589,2051.9,2051.5,2.90695]
[1617385342619,57.6809,2052.0,2051.5,2.90695]
[1617385343621,59.5664,2052.0,2051.0,99.6221]
[1617385344423,59.5664,2052.0,2051.1,2.90695]
[1617385344723,59.5664,2052.0,2051.1,3.87265]
[1617385344925,59.59491885,2052.0,2051.1,3.87265]
[1617385345123,59.59491885,2052.0,2051.1,2.90695]
[1617385345924,0.02850998,2051.9,2051.1,2.90695]
[1617385346325,2.90695,2051.2,2051.1,2.90695]
[1617385346524,4.64285,2051.2,2051.1,2.90695]
[1617385350125,2.90695,2051.2,2051.1,2.90695]
[1617385350326,0.02849561,2051.9,2051.1,32.90695]
[1617385350530,0.05699561,2052.1,2051.2,63.7763]
[1617385350531,2.90695,2051.7,2051.2,63.7763]
[1617385352326,2.90695,2051.7,2051.2,93.7763]
[1617385352528,2.90695,2051.7,2051.6,4.26495]
[1617385355034,2.90695,2051.7,2051.6,2.90695]
[1617385357731,4.56345,2051.7,2051.6,2.90695]
[1617385358732,2.90695,2051.7,2051.6,2.90695]
[1617385361133,2.90695,2051.7,2051.6,32.90695]
[1617385361334,0.02853277,2052.3,2051.7,56.9888]
[1617385361534,0.02853437,2052.5,2051.8,30.0]
[1617385361933,14.0015328,2052.7,2051.8,30.0]
[1617385362334,0.0285328,2052.7,2051.8,30.0]
[1617385362535,0.0285328,2052.7,2052.4,2.90695]
[1617385362937,0.02852329,2052.8,2052.6,74.4095]
[1617385364438,2.90695,2052.7,2052.6,74.4095]
[1617385365239,2.93547381,2052.7,2052.4,2.90695]
[1617385365637,79.0764,2052.5,2052.4,2.90695]
[1617385376546,79.0764,2052.5,2052.2,73.1258]
[1617385378648,2.90695,2052.3,2052.2,73.1258]
[1617385379352,2.90695,2052.3,2052.0,2.90695]
[1617385381849,2.90695,2052.3,2052.2,68.7849]
[1617385387458,0.0285209,2052.9,2052.1,1.3946]
[1617385387659,0.0285209,2052.9,2052.3,56.2915]
[1617385387860,0.0285209,2052.9,2052.4,30.0]
[1617385388459,0.02851972,2053.0,2052.8,68.1669]
[1617385388659,2.90695,2052.9,2052.8,68.1669]
[1617385390061,2.93546987,2052.9,2052.8,68.1669]
[1617385390663,2.93546987,2052.9,2052.7,2.90695]
[1617385392463,81.1923,2052.8,2052.7,2.90695]
[1617385392863,81.1923,2052.8,2052.5,73.1547]
[1617385394566,81.22081135,2052.8,2052.5,73.1547]
[1617385394766,2.90695,2052.6,2052.5,73.1547]
[1617385394967,2.90695,2052.6,2052.2,2.90695]
[1617385395166,61.6946,2052.4,2052.3,58.0565]
[1617385400176,61.6946,2052.4,2052.3,60.6275]
[1617385401778,2.90695,2052.6,2052.3,2.571]
[1617385401979,2.90695,2052.6,2052.2,4.32395]
[1617385402680,2.90695,2052.3,2052.2,4.32395]
[1617385404381,2.90695,2052.3,2052.2,2.90695]
[1617385405383,2.90695,2052.3,2052.2,78.88625]
[1617385414897,2.90695,2052.3,2052.2,75.9793]
[1617385416698,2.90695,2052.3,2052.0,2.90695]
[1617385416899,61.4001,2052.2,2052.0,2.90695]
[1617385418498,61.4001,2052.2,2051.7,32.571]
[1617385418699,1.3754,2052.4,2051.7,2.571]
[1617385418700,2.90695,2051.8,2051.7,2.571]
[1617385418901,4.36165,2051.8,2051.2,2.90695]
[1617385419301,4.36165,2051.8,2050.5,32.571]
[1617385419502,78.3273,2050.8,2050.6,0.32151401]
[1617385419702,79.7733,2050.8,2050.6,0.32151401]
[1617385420703,1.446,2050.8,2050.6,0.32151401]
[1617385420904,4.35295,2050.8,2050.7,2.90695]
[1617385421303,4.35295,2050.8,2050.7,3.22871164]
[1617385421506,4.35295,2050.8,2050.7,2.90695]
[1617385421720,4.35295,2050.8,2050.7,80.64155]
[1617385421916,4.35295,2050.8,2050.7,110.64155]
[1617385422106,1.446,2050.8,2050.7,110.96332845]
[1617385422525,1.446,2050.8,2050.7,33.22872845]
[1617385422713,1.446,2050.8,2050.7,32.90695]
[1617385422911,2.90695,2050.8,2050.7,32.90695]
[1617385425309,2.90695,2050.8,2050.7,2.90695]
[1617385425510,69.4221,2050.7,2049.5,30.0]
[1617385425709,4.24865,2050.8,2049.5,30.0]
[1617385426110,4.24865,2050.8,2049.6,0.32201977]
[1617385426909,68.7573,2050.5,2050.4,2.90695]
[1617385427110,1.3417,2050.8,2050.4,2.90695]
[1617385428912,2.90695,2050.5,2050.4,2.90695]
[1617385434632,2.90695,2050.5,2050.4,32.90695]
[1617385437626,0.9829,2051.6,2050.4,34.45375]
[1617385437826,0.02849538,2051.9,2050.9,30.0]
[1617385438027,14.06229488,2052.0,2050.9,30.0]
[1617385438225,14.06229488,2052.0,2050.9,31.5048]
[1617385438426,14.0338,2052.0,2050.9,31.5048]
[1617385438826,14.0338,2052.0,2051.3,2.90695]
[1617385440231,74.4994,2051.3,2050.9,30.0]
[1617385440831,74.4994,2051.3,2050.1,30.0]
[1617385441031,14.0338,2052.0,2051.0,2.90695]
[1617385441432,14.06228295,2052.0,2050.1,30.0]
[1617385441633,56.3776,2051.3,2050.1,30.0]
[1617385442032,58.1102,2051.3,2050.1,30.0]
[1617385442232,1.7326,2051.3,2050.1,30.0]
[1617385442432,56.4021,2050.4,2050.1,30.0]
[1617385443032,56.4021,2050.4,2050.3,32.90695]
[1617385458347,1.3402,2050.9,2050.3,32.90695]
[1617385458548,2.90695,2051.2,2050.3,32.90695]
[1617385459250,2.90695,2051.2,2051.1,2.90695]
[1617385480979,2.90695,2051.2,2050.8,30.0]
[1617385481578,2.90695,2050.9,2050.8,32.90695]
[1617385485682,2.90695,2050.9,2050.8,2.90695]
[1617385485881,2.90695,2050.9,2050.7,2.571]
[1617385486282,3.87205,2050.9,2050.7,2.571]
[1617385486883,2.90695,2050.9,2050.7,2.571]
[1617385488888,3.87845,2050.9,2050.7,2.571]
[1617385489686,3.87845,2050.9,2049.9,2.90695]
[1617385489885,3.87845,2050.9,2049.3,32.571]
[1617385490088,1.283,2050.3,2049.3,32.571]
[1617385490688,1.283,2050.3,2049.4,0.32166201]
[1617385491489,1.283,2050.3,2049.5,2.90695]
[1617385491689,62.2763,2049.8,2049.5,32.90695]
[1617385493493,2.90695,2049.7,2049.5,32.90695]
[1617385493693,2.90695,2049.7,2049.5,30.0]
[1617385495492,2.90695,2049.7,2049.6,2.90695]
[1617385496094,2.90695,2049.7,2049.5,30.0]
[1617385496293,56.8547,2049.6,2049.5,30.0]
[1617385497793,56.8547,2049.6,2049.3,2.90695]
[1617385499394,56.8547,2049.6,2049.3,32.90695]
[1617385499594,2.90695,2049.4,2049.3,32.90695]
[1617385500199,56.8547,2049.6,2049.3,32.90695]
[1617385501701,56.8547,2049.6,2048.6,2.571]
[1617385501702,2.90695,2049.4,2048.7,30.0]
[1617385502302,2.90695,2049.4,2048.8,0.32073383]
[1617385502502,2.90695,2049.4,2048.7,30.0]
[1617385502701,2.90695,2049.4,2048.1,30.0]
[1617385502901,79.8837,2048.7,2048.1,30.0]
[1617385503101,79.8837,2048.7,2048.2,0.31925476]
[1617385503601,2.90695,2048.7,2048.6,2.90695]
[1617385505906,2.90695,2048.7,2048.1,30.0]
[1617385507006,56.9358,2048.4,2048.1,30.0]
[1617385507606,56.9358,2048.4,2048.2,2.90695]
[1617385507806,56.9358,2048.4,2048.2,32.90695]
[1617385509611,2.90695,2048.3,2048.2,32.90695]
[1617385516016,4.49625,2048.3,2048.2,32.90695]
[1617385518017,4.49625,2048.3,2048.2,2.90695]
[1617385518217,57.1582,2048.2,2047.3,30.0]
[1617385519718,57.1582,2048.2,2047.8,2.90695]
[1617385519918,57.1582,2048.2,2047.8,5.47795]
[1617385520517,1.5893,2048.3,2047.8,35.47795]
[1617385520717,69.7939,2047.9,2047.8,36.46015]
[1617385521917,72.70085,2047.9,2047.8,36.46015]
[1617385522918,72.70085,2047.9,2047.8,33.88915]
[1617385527322,69.7939,2047.9,2047.8,33.88915]
[1617385532026,69.7939,2047.9,2047.8,32.90695]
[1617385546941,2.90695,2048.1,2047.8,32.90695]
[1617385552250,70.9627,2047.9,2047.8,32.90695]
[1617385552646,70.9627,2047.9,2047.8,33.22984505]
[1617385552849,0.9777,2049.1,2047.8,34.50674505]
[1617385553046,70.9129,2049.4,2047.8,34.18385]
[1617385553447,70.9129,2049.4,2047.9,0.32255259]
[1617385554045,70.9129,2049.4,2049.0,2.90695]
[1617385556148,2.90695,2049.1,2049.0,2.90695]
[1617385560254,3.89275,2049.1,2049.0,2.90695]
[1617385560453,2.90695,2049.1,2049.0,2.90695]
[1617385561053,2.90695,2049.1,2047.9,30.0]
[1617385561456,84.9318,2049.0,2047.9,30.0]
[1617385561657,74.7639,2049.0,2047.9,30.0]
[1617385561858,3.87705,2049.1,2047.9,30.0]
[1617385562257,2.90695,2048.0,2047.9,32.90695]
[1617385562857,2.90695,2048.0,2047.9,33.22993757]
[1617385564661,74.9023,2048.4,2047.9,33.22993757]
[1617385565362,72.949,2048.4,2047.9,32.90695]
[1617385565563,72.949,2048.4,2048.0,0.32336892]
[1617385565962,72.949,2048.4,2048.0,2.89436892]
[1617385566163,2.90695,2048.1,2048.0,32.571]
[1617385566562,72.949,2048.4,2048.0,32.89427706]
[1617385566961,73.9169,2048.4,2048.0,30.0]
[1617385567161,73.9169,2048.4,2048.1,0.32403862]
[1617385568265,2.90695,2048.2,2048.1,0.32403862]
[1617385568664,56.2382,2048.1,2048.0,30.0]
[1617385568870,56.2382,2048.1,2048.0,30.32431555]
[1617385569165,56.2382,2048.1,2048.0,30.0]
[1617385573871,56.2382,2048.1,2048.0,30.32447296]
[1617385574872,56.2382,2048.1,2048.0,30.0]
[1617385575072,2.90695,2048.2,2048.0,30.0]
[1617385575672,68.7297,2048.1,2048.0,30.0]
[1617385576772,2.90695,2048.2,2048.0,30.0]
[1617385583983,77.3174,2048.4,2048.0,30.0]
[1617385584583,77.3174,2048.4,2048.3,2.90695]
[1617385584782,77.3174,2048.4,2048.3,4.64005]
[1617385584984,77.3174,2048.4,2048.3,34.64005]
[1617385585585,2.90695,2048.6,2048.3,34.64005]
[1617385588186,13.2217,2049.5,2048.3,34.64005]
[1617385588387,69.3378,2049.5,2048.4,55.2139]
[1617385588589,69.3378,2049.5,2049.2,2.90695]
[1617385588788,56.1161,2049.5,2049.2,2.90695]
[1617385588987,56.1161,2049.5,2049.2,32.90695]
[1617385589989,0.02855067,2049.8,2049.3,71.7882]
[1617385590591,2.90695,2049.4,2049.3,71.7882]
[1617385590991,2.90695,2049.4,2049.2,32.90695]
[1617385591592,2.90695,2049.4,2049.3,64.019]
[1617385591792,0.02854998,2049.8,2049.3,95.8678]
[1617385592394,0.02854675,2050.1,2049.3,95.8678]
[1617385592594,0.02857101,2050.0,2049.7,2.90695]
[1617385592995,0.02857131,2049.9,2049.7,2.90695]
[1617385594503,0.02857058,2050.0,2049.7,2.90695]
[1617385594702,2.90695,2049.8,2049.7,2.90695]
[1617385598814,2.90695,2049.8,2049.3,94.019]
[1617385599014,2.93553413,2049.8,2049.3,30.0]
[1617385599213,2.93553413,2049.8,2048.7,4.571]
[1617385599214,63.426,2049.6,2048.8,30.0]
[1617385600013,64.7232,2049.6,2048.8,30.0]
[1617385600414,0.02858729,2049.5,2048.8,30.0]
[1617385600816,0.02858729,2049.5,2049.1,2.90695]
[1617385602816,2.90695,2049.2,2049.1,2.90695]
[1617385603417,0.02859243,2049.4,2049.1,2.90695]
[1617385603819,0.0285917,2049.5,2049.1,2.90695]
[1617385604819,2.9355417,2049.5,2049.4,2.90695]
[1617385605619,2.90695,2049.5,2049.4,2.90695]
[1617385606420,2.90695,2049.5,2048.8,30.0]
[1617385606622,63.0159,2049.0,2048.8,30.0]
[1617385606823,0.987,2049.0,2048.9,2.90695]
[1617385607027,1.88759158,2049.5,2048.9,2.90695]
[1617385607227,68.7722,2049.4,2048.9,2.90695]
[1617385608929,2.90695,2049.0,2048.9,2.90695]
[1617385611534,60.24935,2049.0,2048.9,2.90695]
[1617385612134,2.90695,2049.0,2048.9,2.90695]
[1617385615537,74.73758605,2049.4,2048.9,32.90695]
[1617385615737,0.02858605,2049.4,2048.9,34.78075]
[1617385615937,0.02859088,2049.5,2049.2,70.0172]
[1617385616638,0.0285903,2049.6,2049.2,70.0172]
[1617385616837,0.0285903,2049.6,2049.5,2.90695]
[1617385617040,0.0571806,2049.7,2049.5,4.21715]
[1617385617438,0.05718057,2049.6,2049.5,4.21715]
[1617385617938,0.05718057,2049.6,2049.5,1.3102]
[1617385618139,0.05718057,2049.6,2049.2,70.0172]
[1617385618938,2.90695,2049.4,2048.9,33.8738]
[1617385620642,0.0285826,2049.6,2049.3,74.0755]
[1617385620840,0.0285826,2049.6,2049.3,104.0755]
[1617385621040,0.0285826,2049.6,2049.5,2.90695]
[1617385621240,2.90695,2049.8,2049.5,34.28825]
[1617385621441,2.90695,2049.8,2049.5,36.28825]
[1617385622442,0.02857757,2050.0,2049.5,36.28825]
[1617385623041,0.02857572,2050.1,2049.9,2.90695]
[1617385623242,0.02857572,2050.1,2050.0,30.0]
[1617385623442,0.02857572,2050.1,2050.0,33.7889]
[1617385623642,0.05715144,2050.2,2050.0,33.7889]
[1617385623643,0.02857514,2050.2,2050.1,56.4999]
[1617385623842,0.02857514,2050.2,2050.1,86.4999]
[1617385624342,0.02857425,2050.3,2050.1,86.4999]
[1617385624944,0.02857425,2050.3,2050.2,2.90695]
[1617385625142,0.02857425,2050.3,2050.2,32.90695]
[1617385625744,0.45718803,2050.7,2050.2,32.90695]
[1617385625944,0.02851239,2050.9,2050.2,32.90695]
[1617385626145,0.02851202,2051.0,2050.3,2.0]
[1617385626345,0.02851202,2051.0,2050.5,2.0]
[1617385626544,0.02851202,2051.0,2050.2,2.90695]
[1617385626545,0.02851202,2051.0,2050.6,32.0]
[1617385626745,0.02851202,2051.0,2050.6,33.4704]
[1617385626944,0.02851025,2051.1,2050.8,2.90695]
[1617385627548,0.02850977,2051.2,2050.8,2.90695]
[1617385628946,2.90695,2050.9,2050.8,2.90695]
[1617385629745,0.02850977,2051.2,2050.8,32.90695]
[1617385630350,0.02850681,2051.3,2050.8,89.59735]
[1617385630751,0.02850488,2051.4,2050.8,89.59735]
[1617385630950,0.02850488,2051.4,2051.3,2.90695]
[1617385631152,0.0285048,2051.5,2051.3,4.39145]
[1617385632151,0.05700959,2051.6,2051.3,4.39145]
[1617385632552,0.0284943,2051.6,2051.3,4.39145]
[1617385632952,2.90695,2051.4,2051.3,4.39145]
[1617385637659,2.90695,2051.4,2051.3,6.39145]
[1617385638059,0.9614,2052.2,2051.4,79.6351]
[1617385638257,0.02838889,2052.4,2051.5,30.0]
[1617385638858,0.02838824,2052.5,2051.5,30.0]
[1617385639057,0.02838824,2052.5,2052.0,2.90695]
[1617385639259,0.02838824,2052.5,2052.0,4.16475]
[1617385640057,60.6905858,2052.6,2052.0,4.16475]
[1617385640459,0.02838556,2052.5,2052.0,4.16475]
[1617385641058,1.00198393,2052.6,2052.4,2.90695]
[1617385641257,0.02838393,2052.6,2052.4,78.14105]
[1617385641459,0.02837982,2052.9,2052.4,78.14105]
[1617385642058,0.02837843,2053.0,2052.4,78.14105]
[1617385642860,0.02836532,2053.2,2052.4,78.14105]
[1617385643061,0.02836532,2053.2,2052.7,2.90695]
[1617385643259,0.02836532,2053.2,2052.7,4.13695]
[1617385644865,15.98256434,2053.3,2052.7,4.13695]
[1617385645065,2.90695,2052.8,2052.7,4.13695]
[1617385648068,13.98256434,2053.3,2052.7,4.13695]
[1617385648069,13.9542,2053.3,2052.7,34.13695]
[1617385648869,13.9542,2053.3,2052.9,79.9437]
[1617385649070,13.9542,2053.3,2053.2,2.90695]
[1617385649270,0.9715,2054.0,2053.2,4.30705]
[1617385650272,0.9715,2054.0,2053.2,2.90695]
[1617385650469,0.9715,2054.0,2052.4,2.0]
[1617385650674,74.9373,2053.4,2052.4,2.0]
[1617385651070,74.9373,2053.4,2052.9,2.90695]
[1617385653169,2.90695,2053.0,2052.9,2.90695]
[1617385653369,2.90695,2053.0,2052.4,30.0]
[1617385653571,4.51795,2053.0,2051.8,71.8603]
[1617385653769,4.51795,2053.0,2051.8,101.8603]
[1617385655069,1.611,2053.0,2052.3,2.90695]
[1617385655470,0.9712,2053.2,2052.3,2.90695]
[1617385655670,74.9373,2053.4,2052.3,2.90695]
[1617385657273,74.9373,2053.4,2052.6,2.90695]
[1617385658274,74.9373,2053.4,2051.9,2.0]
[1617385658677,74.9373,2053.4,2051.8,71.8603]
[1617385659277,74.9373,2053.4,2052.4,2.90695]
[1617385661179,2.90695,2052.5,2052.4,2.90695]
[1617385661579,2.90695,2052.5,2051.1,56.1114]
[1617385661779,58.1261,2052.4,2051.1,86.1114]
[1617385661978,59.7404,2052.4,2051.1,86.1114]
[1617385663180,59.7404,2052.4,2051.7,2.90695]
[1617385663784,1.6143,2052.4,2051.7,2.90695]
[1617385663981,70.2383,2052.9,2051.7,78.66975]
[1617385664181,67.4879,2052.9,2051.7,78.66975]
[1617385665181,68.461,2052.9,2052.2,2.90695]
[1617385666692,68.461,2052.9,2051.7,75.7628]
[1617385666893,69.6916,2052.9,2051.7,75.7628]
[1617385667293,2.90695,2051.8,2051.7,75.7628]
[1617385667486,4.63755,2051.8,2051.7,75.7628]
[1617385667699,1.7306,2051.8,2051.7,75.7628]
[1617385668685,1.5972,2052.4,2051.7,75.7628]
[1617385669187,1.5972,2052.4,2052.1,2.90695]
[1617385669888,77.951,2052.3,2052.1,2.90695]
[1617385670588,77.951,2052.3,2051.4,30.0]
[1617385671190,77.951,2052.3,2051.8,2.90695]
[1617385673291,2.90695,2051.9,2051.8,2.90695]
[1617385679304,77.951,2052.3,2051.5,32.0]
[1617385679504,77.951,2052.3,2051.5,33.648]
[1617385679802,77.951,2052.3,2052.0,2.90695]
[1617385681403,77.951,2052.3,2052.0,2.83075]
[1617385681905,2.90695,2052.1,2051.7,2.90695]
[1617385682503,3.89275,2052.1,2051.7,2.90695]
[1617385683410,2.90695,2052.1,2051.7,2.90695]
[1617385684004,2.90695,2051.8,2051.7,2.90695]
[1617385688411,2.90695,2051.8,2051.7,4.90695]
[1617385689712,2.90695,2051.8,2051.7,2.90695]
[1617385693313,4.19465,2051.8,2050.8,76.1128]
[1617385693514,60.7373,2051.7,2050.8,76.1128]
[1617385694113,60.7373,2051.7,2051.1,2.90695]
[1617385696118,2.90695,2051.2,2051.1,2.90695]
[1617385696316,5.47965,2051.2,2051.1,2.90695]
[1617385696517,4.51315,2051.2,2051.1,2.90695]
[1617385697519,5.47905,2051.2,2051.1,2.90695]
[1617385698424,5.47905,2051.2,2050.8,74.1128]
[1617385700123,2.90695,2050.9,2050.1,30.0]
[1617385700332,70.5907,2050.6,2050.1,30.0]
[1617385700730,72.3367,2050.6,2050.1,30.0]
[1617385701425,72.3367,2050.6,2050.2,2.0]
[1617385701625,72.3367,2050.6,2050.2,32.0]
[1617385701822,70.5907,2050.6,2050.2,32.0]
[1617385702123,73.49765,2050.6,2050.5,2.90695]
[1617385705432,70.5907,2050.6,2050.5,2.90695]
[1617385708134,73.49765,2050.6,2050.5,2.90695]
[1617385714057,2.90695,2050.6,2050.5,2.90695]
[1617385714267,2.90695,2051.4,2050.5,34.25635]
[1617385714462,2.90695,2051.4,2050.5,36.25635]
[1617385716142,2.90695,2051.4,2051.3,2.90695]
[1617385722147,2.90695,2051.4,2051.0,1.8836]
[1617385722347,2.90695,2051.4,2050.5,33.3494]
[1617385722747,0.9848,2051.5,2051.1,2.90695]
[1617385722947,75.9036,2051.6,2051.1,2.90695]
[1617385724653,2.90695,2051.2,2051.1,2.90695]
[1617385743873,2.90695,2051.2,2050.5,31.3494]
[1617385744275,2.90695,2051.2,2050.5,1.3494]
[1617385744476,2.90695,2051.2,2050.0,2.0]
[1617385744675,74.2095,2050.6,2050.0,2.0]
[1617385744975,74.2095,2050.6,2050.5,4.24975]
[1617385746778,77.11645,2050.6,2050.5,4.24975]
[1617385749683,77.11645,2050.6,2050.5,2.90695]
[1617385757591,77.11645,2050.6,2049.9,2.571]
[1617385758893,74.2095,2050.6,2050.2,2.90695]
[1617385760995,2.90695,2050.3,2050.2,2.90695]
[1617385764702,2.90695,2050.3,2049.8,100.6781]
[1617385764901,2.4558,2050.9,2050.0,2.90695]
[1617385765102,70.2912,2050.1,2050.0,2.90695]
[1617385767002,73.19815,2050.1,2050.0,2.90695]
[1617385776916,2.90695,2050.1,2050.0,2.90695]
[1617385779919,2.90695,2050.1,2050.0,2.80475]
[1617385781120,74.2173,2050.0,2049.7,2.90695]
[1617385782621,2.90695,2050.1,2049.7,2.90695]
[1617385783023,2.90695,2049.8,2049.0,2.90695]
[1617385783223,4.84025,2049.8,2049.0,2.90695]
[1617385783422,4.84025,2049.8,2049.1,0.32289686]
[1617385784323,4.84025,2049.8,2049.0,2.90695]
[1617385784522,64.9801,2049.1,2049.0,2.90695]
[1617385785122,67.88705,2049.1,2049.0,2.90695]
[1617385785723,2.90695,2049.1,2049.0,2.90695]
[1617385786125,2.90695,2049.1,2049.0,81.82995]
[1617385787325,2.90695,2049.1,2049.0,2.90695]
[1617385804552,3.88395,2049.1,2049.0,2.90695]
[1617385804954,3.88395,2049.1,2048.2,110.5165]
[1617385805153,72.673,2048.5,2048.2,110.5165]
[1617385805353,73.9705,2048.5,2048.2,110.5165]
[1617385807155,73.9705,2048.5,2048.4,2.90695]
[1617385808855,72.673,2048.5,2048.4,2.90695]
[1617385809457,72.673,2048.5,2048.4,32.90695]
[1617385809673,2.90695,2048.8,2048.4,34.90695]
[1617385809865,2.90695,2048.8,2048.6,80.1237]
[1617385810063,2.90695,2048.8,2048.6,81.7183]
[1617385810660,78.2911,2049.2,2048.6,113.7183]
[1617385811161,81.19805,2049.2,2049.1,2.90695]
[1617385825576,2.90695,2049.2,2048.6,2.571]
[1617385825777,58.0629,2049.1,2048.6,2.571]
[1617385825977,0.975,2049.1,2048.6,2.571]
[1617385827377,0.975,2049.1,2048.8,2.90695]
[1617385827778,57.6519,2048.9,2048.8,2.90695]
[1617385829478,60.55885,2048.9,2048.8,2.90695]
[1617385843601,2.90695,2048.9,2048.8,2.90695]
[1617385845798,4.59585,2048.9,2048.8,2.90695]
[1617385849400,4.59585,2048.9,2048.3,2.90695]
[1617385851502,2.90695,2048.4,2048.3,2.90695]
[1617385863628,2.90695,2048.4,2048.3,4.90695]
[1617385863829,75.61543272,2049.4,2048.3,34.90695]
[1617385864030,75.5869,2049.4,2048.4,74.3815]
[1617385864229,75.5869,2049.4,2048.5,32.0]
[1617385865031,0.0285499,2050.0,2048.5,32.0]
[1617385865230,0.0285499,2050.0,2049.4,64.7138]
[1617385865430,0.0285499,2050.0,2049.5,30.0]
[1617385865630,0.0285499,2050.0,2049.7,67.62075]
[1617385865830,0.0285478,2050.2,2049.7,67.62075]
[1617385866430,0.02854705,2050.3,2049.7,67.62075]
[1617385867031,0.02854705,2050.3,2049.7,97.62075]
[1617385867233,13.61584495,2050.4,2049.7,97.62075]
[1617385867630,13.61584495,2050.4,2050.0,2.90695]
[1617385867631,13.5873,2050.4,2050.0,2.90695]
[1617385867831,0.02854333,2050.5,2050.0,4.31835]
[1617385868333,0.02854237,2050.6,2050.0,4.31835]
[1617385869735,2.90695,2050.1,2050.0,4.31835]
[1617385874543,2.90695,2050.1,2050.0,2.90695]
[1617385875942,79.40295,2050.1,2050.0,2.90695]
[1617385879545,2.90695,2050.1,2050.0,2.90695]
[1617385880351,2.90695,2050.1,2050.0,63.33605]
[1617385880550,2.90695,2050.1,2050.0,64.58445]
[1617385884858,2.90695,2050.1,2050.0,63.33605]
[1617385885261,2.90695,2050.1,2050.0,2.90695]
[1617385885858,2.90695,2050.1,2049.6,30.0]
[1617385885859,2.90695,2050.1,2049.7,2.90695]
[1617385886058,75.4416,2050.0,2049.7,2.90695]
[1617385887860,2.90695,2049.8,2049.7,2.90695]
[1617385888060,2.90695,2049.8,2049.7,32.90695]
[1617385888261,0.02850823,2050.6,2049.8,80.5083]
[1617385888461,0.02850823,2050.6,2049.9,30.0]
[1617385888662,0.02850719,2050.8,2049.9,32.0]
[1617385888862,0.02850321,2051.0,2049.9,32.0]
[1617385889060,0.02850321,2051.0,2050.8,82.1233]
[1617385889261,0.02850111,2051.2,2050.8,82.1233]
[1617385889663,0.02849999,2051.3,2050.8,82.1233]
[1617385889862,2.90695,2050.9,2050.8,82.1233]
[1617385890763,13.59269949,2051.4,2050.8,112.1233]
[1617385891565,13.59269949,2051.4,2050.8,114.1233]
[1617385891764,13.5642,2051.4,2050.8,114.1233]
[1617385891969,13.5642,2051.4,2051.3,4.42315]
[1617385892165,0.02849501,2051.5,2051.3,4.42315]
[1617385892566,0.02849434,2051.6,2051.3,4.42315]
[1617385893371,0.02849434,2051.6,2051.4,30.0]
[1617385893980,0.02848962,2051.9,2051.4,30.0]
[1617385894171,0.02848934,2052.0,2051.4,30.0]
[1617385894369,0.02848934,2052.0,2051.5,2.0]
[1617385894575,0.02848934,2052.0,2051.8,74.4114]
[1617385894973,0.02848833,2052.1,2051.8,74.4114]
[1617385895172,2.90695,2052.2,2051.8,74.4114]
[1617385895371,2.90695,2052.2,2051.8,104.4114]
[1617385895972,2.90695,2052.2,2052.1,2.90695]
[1617385897178,2.90695,2052.2,2052.1,32.90695]
[1617385904783,13.224,2052.7,2052.1,32.90695]
[1617385905385,13.224,2052.7,2052.6,60.3528]
[1617385905583,0.9605,2053.0,2052.6,60.3528]
[1617385905784,0.0283577,2053.1,2052.6,61.895]
[1617385906184,0.0283577,2053.1,2052.8,2.90695]
[1617385906385,70.5995,2053.3,2052.8,2.90695]
[1617385906783,71.5734,2053.3,2052.8,2.90695]
[1617385908090,2.90695,2052.9,2052.8,2.90695]
[1617385911489,79.9909,2052.8,2052.6,30.0]
[1617385912288,79.9909,2052.8,2052.5,2.90695]
[1617385912489,79.9909,2052.8,2052.5,32.90695]
[1617385916294,2.90695,2052.9,2052.5,34.88045]
[1617385916898,2.90695,2052.9,2052.8,68.2522]
[1617385917495,2.90695,2052.9,2052.5,34.88045]
[1617385917697,65.239,2052.8,2052.5,34.88045]
[1617385922504,65.239,2052.8,2052.5,32.90695]
[1617385926210,65.239,2052.8,2052.6,3.612]
[1617385926412,5.09695,2053.8,2052.8,2.0]
[1617385926611,5.09695,2053.8,2053.0,2.0]
[1617385926813,5.09695,2053.8,2053.1,31.8214]
[1617385928314,5.09695,2053.8,2053.5,2.90695]
[1617385930313,2.90695,2053.6,2053.5,2.90695]
[1617385931316,79.9957,2053.5,2052.6,31.612]
[1617385932116,79.9957,2053.5,2052.7,2.0]
[1617385932316,79.9957,2053.5,2053.1,2.90695]
[1617385932516,79.9957,2053.5,2053.1,4.91095]
[1617385933019,79.9957,2053.5,2053.1,34.91095]
[1617385933616,5.09695,2053.8,2053.1,34.91095]
[1617385934418,5.09695,2053.8,2053.1,32.004]
[1617385935419,63.6856,2053.5,2053.1,32.004]
[1617385936420,63.6856,2053.5,2053.2,2.90695]
[1617385938325,2.90695,2053.3,2053.2,2.90695]
[1617385941227,68.62195,2053.3,2053.2,2.90695]
[1617385945631,2.90695,2053.3,2053.2,2.90695]
[1617385946430,66.14785,2053.3,2053.2,2.90695]
[1617385948231,67.12645,2053.3,2053.0,30.0]
[1617385948431,67.12645,2053.3,2052.6,2.90695]
[1617385950437,2.90695,2052.7,2052.6,2.90695]
[1617385950831,68.07545,2052.7,2052.6,2.90695]
[1617385954738,68.07545,2052.7,2052.5,30.0]
[1617385956439,68.07545,2052.7,2052.5,32.90695]
[1617385956839,68.07545,2052.7,2051.9,2.0]